Cogmind - Beta 14 @@@ ROGUE MODE // 2024.09.11 @ 11:39:37 Player: Awoo-Bot Result: Destroyed by VX-A7A(R) with Subdweller Laser Performance ------------- Evolutions (0) 0 Regions Visited (2) 400 Robots Destroyed (30) 150 Value Destroyed (728) 728 Prototype IDs (11) 220 Alien Tech Used (0) 0 Bonus (0) 0 TOTAL SCORE: 1498 Bonus ------- None Cogmind --------- Core Integrity 0/250 Matter 280/300 Energy 100/100 System Corruption 0% Temperature Cool (6) Movement Rolling (100) Location -10/Subcaves Parts ------- > --- POWER (1) -------- (None) > --- PROPULSION (2) --- Compact Wheel > --- UTILITY (2) ------ Small Storage Unit Makeshift Light Armor Plating > --- WEAPON (2) ------- Battle Cannon > --- INVENTORY (8) ---- Spiked Treads Wheel Flightbrick Barrage Gun Barrage Gun Peak State ------------ > --- POWER ------------ Light Ion Engine > --- PROPULSION ------- Compact Wheel > --- UTILITY ---------- Small Storage Unit Makeshift Light Armor Plating > --- WEAPON ----------- Battle Cannon Grenade Launcher > --- INVENTORY -------- Spiked Treads Wheel Flightbrick Barrage Gun Barrage Gun [Rating: 14] Favorites ----------- Power Ion Engine Engine Ion Engine Propulsion Compact Wheel Wheel Compact Wheel Utility Small Storage Unit Device Seismic Detector Storage Small Storage Unit Protection Makeshift Light Armor Plating Weapon EM Pulse Gun Energy Gun EM Pulse Gun Ballistic Gun Assault Rifle Ballistic Cannon Battle Cannon Launcher Grenade Launcher Build | -11 -10 -10 ------- Run | Yrd Mat Sub Slots Evolved . | . . . Power . | . . . Propulsion . | . . . Utility . | . . . Weapon . | . . . Parts Attached 25 | 10 8 7 Power 3 | 2 . 1 Engine 3 | 2 . 1 Core . | . . . Reactor . | . . . Propulsion 6 | 4 2 . Treads . | . . . Leg . | . . . Wheel 6 | 4 2 . Hover . | . . . Flight . | . . . Utility 6 | 2 2 2 Device 3 | 1 1 1 Storage 2 | 1 1 . Processor . | . . . Hackware . | . . . Protection 1 | . . 1 Artifact . | . . . Weapon 10 | 2 4 4 Energy Gun 6 | 2 3 1 Energy Cannon . | . . . Ballistic Gun 1 | . . 1 Ballistic Cannon 1 | . . 1 Launcher 2 | . 1 1 Special Weapon . | . . . Impact Weapon . | . . . Slashing Weapon . | . . . Piercing Weapon . | . . . Special Melee Weapon . | . . . Unidentified Prototypes . | . . . Parts Lost 12 | . 4 8 Power 2 | . . 2 Propulsion 3 | . 2 1 Utility 1 | . . 1 Weapon 6 | . 2 4 Highest Loss Streak 3 | . 2 3 To Critical Strikes . | . . . Average Slot Usage (%) 91 | . 88 97 Engine 13 | . 14 13 Wheel 20 | . 17 26 Device 13 | . 14 12 Storage 14 | . 14 14 Energy Gun 18 | . 27 3 Ballistic Gun 2 | . . 7 Ballistic Cannon 1 | . . 5 Launcher 4 | . . 11 Peak Build Rating 14 | 7 8 14 Average Rating 7 | 5 6 9 On Entrance 4 | . 7 7 Naked Turns . | . . . Heaviest Build 18 | 15 15 18 Greatest Support 32 | 32 32 32 Greatest Overweight (x) 4 | . 4 1 Average Overweight (x) . | . 1 . Largest Inventory Capacity 8 | 8 8 8 Average Capacity 7 | 7 8 8 Most Carried 8 | 7 8 8 Average Carried 6 | 3 7 4 Final Capacity 8 | 8 8 8 Final Carried 8 | 7 7 8 Class Distribution -------------------- 100% | Mutant Dominant Class ---------------- Mutant | -10/Materials Mutant | -10/Subcaves Resources | -11 -10 -10 ----------- Run | Yrd Mat Sub Matter Collected 674 | 300 100 274 Remotely . | . . . Salvage Created 1009 | 122 715 172 Parts 70 | 7 50 13 Haulers Intercepted . | . . . Recyclers Shooed 1 | 1 . . Parts Field Recycled . | . . . Retrieved Matter . | . . . Parts Self-Destructed 9 | . . 9 Prevented . | . . . Kills | -11 -10 -10 ------- Run | Yrd Mat Sub Combat Hostiles Destroyed 19 | . 14 5 Guns 9 | . 8 1 AOE 9 | . 6 3 Classes Destroyed 7 | 2 4 1 Worker 4 | . 4 . Tunneler 2 | 2 . . Recycler 2 | 1 1 . Watcher 3 | . 3 . Swarmer 3 | . 3 . Grunt 11 | . 11 . Subdweller 5 | . . 5 Best Kill Streak 12 | 3 12 1 Combat Bots Only 8 | . 8 1 Max Kills in Single Turn 3 | 1 3 1 Gunslinging . | . . . Exploded 2 | . 2 1 Melee . | . . . Uniques/NPCs Destroyed . | . . . Combat | -11 -10 -10 -------- Run | Yrd Mat Sub Hostile Shots Fired 83 | . 42 41 Missed 25 | . 17 8 Damage Taken 1031 | 11 348 672 Core 270 | . 71 199 Absorbed by Shields . | . . . Core Remaining (%) 100 | 100 . . Volleys Fired 90 | 6 38 46 Largest 2 | 2 2 2 Hottest 80 | 80 80 80 Shots Fired 123 | 12 56 55 Gun 90 | 12 53 25 Cannon 19 | . . 19 Launcher 14 | . 3 11 Special . | . . . Kinetic 32 | . . 32 Thermal . | . . . Explosive 14 | . 3 11 Electromagnetic 77 | 12 53 12 Robot Hit Streak 10 | 7 10 7 Robot Miss Streak 4 | 1 4 1 Penetration Max . | . . . Secondary Targets . | . . . Shots Hit Robots 60 | 9 32 19 Core Hits 41 | 3 29 9 Critical Kills . | . . . Critical Parts Destroyed . | . . . Critical Strikes 1 | . 1 . Corrupt 1 | . 1 . Melee Attacks . | . . . Impact . | . . . Slashing . | . . . Piercing . | . . . Sneak Attacks . | . . . Combat Hostiles . | . . . Follow-up Attacks . | . . . Damage Inflicted 1610 | 190 928 492 Guns 817 | 122 525 170 Cannons . | . . . Explosions 793 | 68 403 322 Melee . | . . . Ramming . | . . . Kinetic 69 | . . 69 Thermal 182 | 68 114 . Explosive 611 | . 289 322 Electromagnetic 748 | 122 525 101 Impact . | . . . Slashing . | . . . Piercing . | . . . Highest Corruption . | . . . Average Corruption . | . . . Corruption Purged . | . . . Corruption Blocked . | . . . Overload Shots . | . . . Overflow Damage 19 | 13 6 . Projectiles . | . . . Explosions 19 | 13 6 . Melee . | . . . Knockbacks . | . . . Impact . | . . . Kinetic . | . . . Secondary . | . . . Self-Inflicted Damage 96 | 11 62 23 Shots 5 | 1 2 2 Rammed . | . . . Targets Rammed . | . . . Kicked . | . . . Crushed . | . . . Highest Temperature 120 | 120 72 . Average Temperature 33 | 63 24 . Received Heat Transfer 174 | . 78 96 Siege Activations . | . . . Robots Corrupted 2 | . 1 1 Combat Hostiles 1 | . . 1 Parts Fried 9 | 4 3 2 Impact Corruptions . | . . . Robots Melted . | . . . Combat Hostiles . | . . . Parts Melted 1 | . . 1 Heat Transferred 250 | 100 150 . Parts Sabotaged . | . . . Parts Stolen . | . . . Parts Stripped . | . . . Power Chain Reactions 4 | 2 2 . Alert | -11 -10 -10 ------- Run | Yrd Mat Sub Peak Influence 266 | 15 266 . Initial 9 | . 9 . Average 92 | 5 96 . Maximum Alert Level 1 | . 1 . Low Security (%) 85 | 100 85 . Level 1 14 | . 14 . Level 2 . | . . . Level 3 . | . . . Level 4 . | . . . Level 5 . | . . . High Security . | . . . Max Security . | . . . Squads Dispatched 3 | . 3 . Investigation 3 | . 3 . Extermination . | . . . Reinforcement . | . . . Assault . | . . . Garrison . | . . . Intercept . | . . . Searches Triggered . | . . . Construction Impeded . | . . . Haulers Reinforced . | . . . Active Scanning Responses . | . . . Cargo Convoy Interrupts . | . . . Stealth | -11 -10 -10 --------- Run | Yrd Mat Sub Distress Signals 6 | . 6 . Communications Jammed . | . . . Distress Signals . | . . . Times Spotted 43 | . 34 9 Peak Tracking Total 5 | . 5 4 Tactical Retreats 3 | . 2 1 Traps | -11 -10 -10 ------- Run | Yrd Mat Sub Traps Triggered 4 | . 4 . Indirectly . | . . . Trap Hack Attempts . | . . . Triggered . | . . . Disarmed . | . . . Reprogrammed . | . . . Reused . | . . . Traps Extracted . | . . . Installed . | . . . Triggered . | . . . Machines | -11 -10 -10 ---------- Run | Yrd Mat Sub Machines Disabled 3 | . 2 1 Max in Single Turn 1 | . 1 1 Machines Repaired . | . . . Machines Dismantled . | . . . Machines Sabotaged . | . . . Overloaded Fab Kills . | . . . Hacking | -11 -10 -10 --------- Run | Yrd Mat Sub Machines Accessed 9 | . 8 1 Terminals 8 | . 8 . Fabricators . | . . . Repair Stations . | . . . Recycling Units . | . . . Scanalyzers . | . . . Garrison Access . | . . . Total Hacks 37 | . 36 1 Successful 23 | . 22 1 Failed 14 | . 14 . Catastrophic 3 | . 3 . Database Lockouts . | . . . Manual 36 | . 36 . Terminals 36 | . 36 . Fabricators . | . . . Repair Stations . | . . . Recycling Units . | . . . Scanalyzers . | . . . Garrison Access . | . . . Terminal Hacks 9 | . 8 1 Robot Analysis 3 | . 3 . Terminal Index 1 | . 1 . Unreport Threat 3 | . 3 . Recall Investigation 1 | . 1 . Derelict Proto ID Bank 1 | . . 1 Fabricator Hacks . | . . . Repair Station Hacks . | . . . Recycling Unit Hacks . | . . . Scanalyzer . | . . . Garrison Access Hacks . | . . . Unauthorized Hacks 14 | . 14 . Terminals 14 | . 14 . Assimilate 1 | . 1 . Botnet 7 | . 7 . Operators 1 | . 1 . Skim 5 | . 5 . Fabricators . | . . . Repair Stations . | . . . Recycling Units . | . . . Scanalyzers . | . . . Garrison Access . | . . . Data Cores Recovered . | . . . Used . | . . . Hacking Detections 8 | . 8 . Full Trace Events . | . . . Feedback Events . | . . . Feedback Blocked . | . . . Robot Schematics Acquired . | . . . Robots Built . | . . . Authchips . | . . . Time . | . . . Total Robot Build Rating . | . . . Part Schematics Acquired . | . . . Parts Built . | . . . Authchips . | . . . Time . | . . . Total Part Build Rating . | . . . Parts Repaired . | . . . Time . | . . . Parts Recycled . | . . . Recycled Matter . | . . . Retrieved Matter . | . . . Retrieved Components . | . . . Parts Scanalyzed . | . . . Part Schematics Acquired . | . . . Parts Damaged . | . . . Bothacking | -11 -10 -10 ------------ Run | Yrd Mat Sub Used RIF Installer . | . . . Robots Hacked . | . . . Non-combat . | . . . Combat . | . . . Robot Hacks Applied . | . . . Relay Couplers Released . | . . . Fabnet Peak Effective % . | . . . Robots Rewired . | . . . Allies Hacked . | . . . Hacks Repelled . | . . . Allies | -11 -10 -10 -------- Run | Yrd Mat Sub Total Allies 1 | . 1 . Largest Group 1 | . 1 . Highest-Rated Group 10 | . 10 . Highest-Rated Ally 10 | . 10 . Total Orders 3 | . 3 . STAY 1 | . 1 . ROAM 1 | . 1 . FOLLOW 1 | . 1 . Ally Attacks . | . . . Total Damage . | . . . Kills . | . . . Allies Corrupted . | . . . Allies Melted . | . . . Intel | -11 -10 -10 ------- Run | Yrd Mat Sub Robot Analysis Total 3 | . 3 . Derelict Logs Recovered 2 | . . 2 Drone Launches . | . . . Drone Recoveries . | . . . Exploration | -11 -10 -10 ------------- Run | Yrd Mat Sub Turns Passed 3328 | 93 2061 1174 Spaces Moved 2157 | 60 1066 1031 Core 307 | 3 304 . Treads . | . . . Legs . | . . . Wheels 1850 | 57 762 1031 Hover . | . . . Flight . | . . . Fastest Speed 50 | 50 80 100 Average Speed 117 | 91 135 101 Slowest Speed 250 | 100 250 115 Overloaded Moves . | . . . Propulsion Burnouts . | . . . Robots Hopped . | . . . Cave-ins Triggered . | . . . Exploration Rate (%) 48 | 4 100 42 Regions Visited 2 Branch Regions 1 Pre-discovered Areas 2 | . 1 1 Known Exits Taken 1 | . 1 . Unknown Exits Taken 1 | 1 . . Scrap Searched 4 | . . 4 Spaces Dug 5 | . 5 . Terrain Destroyed 90 | 9 16 65 Melee . | . . . Projectile . | . . . AOE 90 | 9 16 65 Terrain Rammed . | . . . Walls Destroyed . | . . . Machines Disabled . | . . . Actions | -11 -10 -10 --------- Run | Yrd Mat Sub Total 2819 | 80 1628 1111 Wait 528 | . 509 19 Move 2155 | 59 1065 1031 Hop . | . . . Pick Up 15 | 5 5 5 Fast Attach 8 | 7 . 1 Attach 9 | . 4 5 Detach . | . . . Swap 8 | 3 4 1 Drop 6 | . 3 3 Fire 90 | 6 38 46 Melee . | . . . Ram . | . . . Kick . | . . . Crush . | . . . Escape Stasis . | . . . Rewire . | . . . Trap . | . . . Miscellaneous . | . . . Route ------- -11/Scrapyard -10/Materials (discovered 5 exits: *Mat x3 / [*Min] / *Sub) -10/Subcaves (discovered 1 exit: Rec) History --------- Turn | Location | Event 14 | -11/Scrapyard | Discovered new exit (range 16) 94 | -11/Scrapyard | Entered Materials 308 | -10/Materials | Build established: Mutant 611 | -10/Materials | Discovered new exit (range 16) 765 | -10/Materials | Discovered new exit (range 13) 1004 | -10/Materials | Destroyed 8 combat bots 1025 | -10/Materials | Discovered new exit (range 15) 1652 | -10/Materials | Identified exit to Subcaves 1709 | -10/Materials | Identified exit to Materials 1709 | -10/Materials | Learned location of 1 exit from Materials 1755 | -10/Materials | Learned location of 2 exits from Mines 1789 | -10/Materials | Learned Storage security intel 2155 | -10/Materials | Entered Subcaves 2156 | -10/Subcaves | Identified exit to Recycling 2264 | -10/Subcaves | Lost 3 parts (1p2w) 2378 | -10/Subcaves | Core integrity fell below 50% 2406 | -10/Subcaves | Core integrity fell below 20% 2751 | -10/Subcaves | Learned location of 1 exit from Materials 2803 | -10/Subcaves | Shifting Twisted Machinery released Battle Cannon 2932 | -10/Subcaves | Visited 4L-MR0's lab 2951 | -10/Subcaves | Found Flightbrick 3090 | -10/Subcaves | Shifting Twisted Machinery released Flamer 3215 | -10/Subcaves | Learned location of Zion (-7) 3329 | -10/Subcaves | Destroyed by VX-A7A(R) with Subdweller Laser Last Messages --------------- 03212_ Found Spk. Treads. 03212_ Found 68 Matter. 03215_ Acquired derelict log, extracted data. World map updated: -7/Zion. 03217_ Searching scrap... 03217_ Found Barrage Gun. 03217_ Found 59 Matter. 03218_ Subatomizers dissect the Sub. Monowheel. 03219_ Acquired Barrage Gun. 03223_ Dropped Lgt. Treads. 03223_ Acquired Spk. Treads. 03230_ Dropped Assault Rifle. 03230_ Acquired Barrage Gun. 03232_ Subatomizers dissect the Sub. Monowheel. 03232_ Dropped Imp. Terrain Scanner. 03233_ Acquired Mak. Light Armor Plating. 03234_ The unstable cave ceiling collapses. 03234_ Assault Rifle crushed. 03317_ Grenade Launcher destroyed. 03319_ Lgt. Ion Engine destroyed. Map ----- +----------------------------------------------------+ | ???????????????????????????????????????????? | | ???????????????????????????????????????????? | | ???????????????????????????????????????????? | | ???????????????????????????????????????????? | | ???????????????????????????????????????????? | | ???????????????????????????????????????????? | | ???????????????????????????????????????????? | | ???????????????????????????????????????????? | | ???????????????????????????????????????????? | | ???????????????????????????????????????????? | | ???????????????? ???????????????????????? | | ??????????????? ??????????????????????? | | ???????????????# ??????????????????????? | | ???????????????# #??????????????????????? | | ??????????????? ??????????????????????? | | ???????????????? #??????????????????????? | | ???????????????? #??????????????????????? | | ???????????????? ???????????????????????? | | ????????????????# ???????????????????????? | | ????????????????#R ???#???????????????????? | | ????????????????# #?? ##??????????????????? | | ???????????????## ## #??????????????????? | | ???????????????# # #??????????????????? | | ????????????????# % #??????????????????? | | ???????????????## # #???????????????????? | | ??????????????## @# #???????????????????? | | ??????????????# #???????????????????? | | ??????????????# ## #???????????????????? | | ??????????????### ##?#???????????????????? | | ????????????????# #?????????????????????? | | ????????????????# #?????????????????????? | | ????????????????# #?????????????????????? | | ????????????????## #?????????????????????? | | ????????????????# ##?????????????????????? | | ?????#??????????# #?????????????????????? | | ????????????????# ##??#??????????????????? | | ????????????????## ##?????????????????????? | | ?????????????????# #?????????????????????? | | ?????????????????# ##?????????#??????#????? | | ???????#?????????# #????????##???????????? | | ??????????#??#???# ###????????????????#???? | | ?????????????#??## #????????????????????? | | ????????????????# ##??????????#????????? | | ???????????????## ##??????????????#?### | | ???????????????# #????????????????# # | | ??????????????## #####?????????#### | | ??????????????# ##???#????## | | ?????#????????# ## #??????#?# | | ??????????????# ##### ##???????# ## | | ????????#???#?# #???# ######### ## | +----------------------------------------------------+ Best States ------------- Heat Dissipation 25 Energy Generation 10 Energy Capacity 250 Matter Stores 300 Matter Capacity 300 Sight Range 16 Terrain Scan Range 16 Terrain Scan Density 10 Armor Coverage 100 Evasion (%) 44 Item Schematics ----------------- None Robot Schematics ------------------ None Fabricated ------------ Nothing Alien Tech Used ----------------- None Achievements -------------- None Challenges ------------ None Game ------ Seed RagnarokFortressExtractor Manual? 0 Play Time 00:22:40 Cumulative 71.2 hours Start 2024.09.11 @ 11:10:37 End 2024.09.11 @ 11:39:37 Sessions 1 Manual Loads 0 Difficulty Rogue Special Mode None Game No. 116 Rogue 88 Adventurer 28 Explorer 0 Win Type - Total 0 Types 0/0/0/0/0/0/0/0/0 Lore% 15 Gallery% 28 Achievement% 31 Wizard Run 0 Options --------- Layout 0 ASCII 0 Keyboard 0 Movement Mouse Keybinds 0 Fullscreen 1 Font 28/Terminus Map View 84x54 Zoom Use 0% Tactical HUD 1 Map Filters NONE Filters NONE Steam 1 RUN: fba08282-9e1a-4091-9d03-92514c5a22b5